Workbook

Sheet 재입찰공고 대상
A1: 사업지구 | B1: 용도 | C1: 블록명 | D1: 지번 | E1: 면적(㎡) | F1: 단가(㎡당/원) | G1: 확정금액(원) | H1: 건폐율 | I1: 용적율 | J1: 비고
A2: 장안첨단 | B2: 지원시설 | C2: J-7 | D2: 수촌리 1473-5 | E2: 505.2 | F2: =G2/E2 -> 523000 | G2: 264219600 | H2: 0.7 | I2: 250%이하 | J2: 입찰
C3: J-15 | D3: 수촌리 1474-6 | E3: 530.5 | F3: =G3/E3 -> 491000 | G3: 260475500
C4: J-16 | D4: 수촌리 1474-7 | E4: 448.5 | F4: =G4/E4 -> 454000 | G4: 203619000
C5: J-17 | D5: 수촌리 1475 | E5: 1276.4 | F5: =G5/E5 -> 498000 | G5: 635647200
B6: 주차장 | C6: J-18 | D6: 수촌리 1475-2 | E6: 4404.9 | F6: =G6/E6 -> 347000 | G6: 1528500300 | H6: 건축법,주차장법, 화성시 건축조례에 의함
B7: 계 | C7: =COUNTA(C2:C6) -> 5 | E7: =SUM(E2:E6) -> 7165.5 | G7: =SUM(G2:G6) -> 2892461600
A8: 평택오성 | B8: 지원시설 | C8: 지원7 | D8: 양교리 1089 | E8: 3125.7 | F8: =G8/E8 -> 533000 | G8: 1665998100 | H8: 0.7 | I8: 250% 이하 | J8: 입찰
C9: 지원8 | D9: 양교리 1089-3 | E9: 4102 | F9: =G9/E9 -> 570000 | G9: 2338140000
C10: 지원11 | D10: 양교리 1094-3 | E10: 1474.3 | F10: =G10/E10 -> 466000 | G10: 687023800
C11: 지원1 | D11: 양교리 1094-4 | E11: 1568.1 | F11: =G11/E11 -> 466000 | G11: 730734600
C12: 지원3 | D12: 양교리 1094-6 | E12: 2032.9 | F12: =G12/E12 -> 544000 | G12: 1105897600
C13: 지원4 | D13: 양교리 1094-7 | E13: 1657.8 | F13: =G13/E13 -> 518000 | G13: 858740400
C14: 지원5 | D14: 양교리 1094-8 | E14: 1557.8 | F14: =G14/E14 -> 518000 | G14: 806940400
C15: 지원6 | D15: 양교리 1094-9 | E15: 1731.8 | F15: =G15/E15 -> 518000 | G15: 897072400
B16: 주차장 | C16: 주1 | D16: 양교리 1089-2 | E16: 1599.7 | F16: =G16/E16 -> 406000 | G16: 649478200 | H16: 건축법,주차장법, 평택시 건축조례에 의함
B17: 계 | C17: =COUNTA(C8:C16) -> 9 | E17: =SUM(E8:E16) -> 18850.1 | G17: =SUM(G8:G16) -> 9740025500
A18: 원곡물류 | B18: 주차장 | C18: P1-1 | D18: 칠곡리 929 | E18: 2717 | F18: =G18/E18 -> 477000 | G18: 1296009000 | H18: 0.6 | I18: 200%이하 | J18: 입찰
C19: P2-1 | D19: 칠곡리 927-4 | E19: 1434.4 | F19: =G19/E19 -> 482000 | G19: 691380800
B20: 계 | C20: 2 | E20: =SUM(E18:E19) -> 4151.4 | G20: =SUM(G18:G19) -> 1987389800
A21: 합계 | C21: =C7+C17+C20 -> 16 | E21: =E7+E17+E20 -> 30167 | G21: =G7+G17+G20 -> 14619876900
